bitfinex-derivatives/quotes_BTCF0:USTF0_20250528
["timestamp","ask_amount","ask_price","bid_price","bid_amount"]
[1748462881469,1.37258911,107080.0,107070.0,0.05792]
[1748462881673,1.37258911,107080.0,107070.0,0.05512]
[1748462882579,1.37258911,107080.0,107070.0,0.10962]
[1748462883080,1.37258911,107080.0,107070.0,0.10762]
[1748462885583,1.17738115,107080.0,107070.0,0.10762]
[1748462885787,1.37258911,107080.0,107070.0,0.10762]
[1748462891784,1.37283886,107080.0,107070.0,0.10762]
[1748462891987,1.37321177,107080.0,107070.0,0.10762]
[1748462892981,1.17800381,107080.0,107070.0,0.10762]
[1748462893185,1.82017177,107080.0,107070.0,0.25488759]
[1748462894478,1.06840381,107080.0,107070.0,0.45563649]
[1748462894683,1.06840381,107080.0,107070.0,1.09912823]
[1748462894684,0.81740381,107080.0,107070.0,1.09912823]
[1748462894983,0.81740381,107080.0,107070.0,0.26888759]
[1748462894984,1.26432381,107080.0,107070.0,0.26888759]
[1748462895288,0.70760381,107080.0,107070.0,0.93297472]
[1748462895483,0.06253723,107080.0,107070.0,1.52951505]
[1748462895689,0.44846184,107090.0,107080.0,0.1867315]
[1748462895877,0.00154184,107090.0,107080.0,0.86927171]
[1748462896188,0.49842184,107090.0,107080.0,1.24179625]
[1748462896586,0.68513584,107090.0,107080.0,1.24179625]
[1748462897174,0.68513584,107090.0,107080.0,1.35821027]
[1748462897489,0.68713584,107090.0,107080.0,1.35821027]
[1748462898281,0.68713584,107090.0,107080.0,1.21253748]
[1748462898882,0.68713584,107090.0,107080.0,1.36993748]
[1748462899485,0.24025584,107090.0,107080.0,1.27655348]
[1748462899788,0.68705584,107090.0,107080.0,1.27655348]
[1748462900287,0.24025584,107090.0,107080.0,1.36993748]
[1748462900494,0.68705584,107090.0,107080.0,1.27655348]
[1748462901182,0.68705584,107090.0,107080.0,1.02655348]
[1748462901782,0.69705584,107090.0,107080.0,1.02655348]
[1748462906282,0.69705584,107090.0,107080.0,1.1136706]
[1748462906592,0.69705584,107090.0,107080.0,0.91846264]
[1748462906788,0.69705584,107090.0,107080.0,1.1136706]
[1748462907188,0.69705584,107090.0,107080.0,0.99725658]
[1748462907997,0.75045584,107090.0,107080.0,0.99725658]
[1748462909099,0.69705584,107090.0,107080.0,0.99725658]
[1748462909594,0.75045584,107090.0,107080.0,0.99725658]
[1748462909778,1.10045584,107090.0,107080.0,0.98725658]
[1748462910385,1.10045584,107090.0,107080.0,0.99005658]
[1748462910894,1.10045584,107090.0,107080.0,0.43404862]
[1748462911098,1.15025584,107090.0,107080.0,0.49223216]
[1748462911690,1.15025584,107090.0,107080.0,0.85303216]
[1748462914290,1.15025584,107090.0,107080.0,0.79496862]
[1748462914480,1.15025584,107090.0,107080.0,0.43416862]
[1748462914686,1.15025584,107090.0,107080.0,0.49225448]
[1748462914887,1.15025584,107090.0,107080.0,0.43416862]
[1748462915799,1.15025584,107090.0,107080.0,0.79496862]
[1748462916184,1.15025584,107090.0,107080.0,0.38296862]
[1748462916386,1.49273139,107090.0,107080.0,0.33475506]
[1748462916596,1.85353139,107090.0,107080.0,0.14814366]
[1748462916894,1.85353139,107090.0,107080.0,0.33475506]
[1748462917098,1.85353139,107090.0,107080.0,0.33487506]
[1748462917299,1.85353139,107090.0,107080.0,0.34887506]
[1748462921293,1.85353139,107090.0,107080.0,0.16214366]
[1748462922298,1.85353139,107090.0,107080.0,0.10403712]
[1748462923399,1.85353139,107090.0,107080.0,0.16229295]
[1748462923603,1.85353139,107090.0,107080.0,0.11886893]
[1748462923900,1.85353139,107090.0,107080.0,0.11874893]
[1748462924291,1.85353139,107090.0,107080.0,0.11886893]
[1748462924500,1.85353139,107090.0,107080.0,0.11874893]
[1748462924697,1.85353139,107090.0,107080.0,0.11886893]
[1748462924904,1.85353139,107090.0,107080.0,0.11889158]
[1748462925701,1.95353139,107090.0,107080.0,0.11889158]
[1748462926199,1.99680272,107090.0,107080.0,0.00012]
[1748462926410,0.1867314,107080.0,107070.0,0.05471258]
[1748462926601,1.54458695,107080.0,107070.0,0.05471258]
[1748462926908,1.54458695,107080.0,107070.0,0.04371575]
[1748462928293,0.2367488,107070.0,107060.0,0.13097304]
[1748462928500,1.83786435,107070.0,107060.0,0.00294017]
[1748462928690,2.03307231,107070.0,107060.0,0.00294017]
[1748462928897,2.03307231,107070.0,107060.0,0.04672936]
[1748462929102,2.03307231,107070.0,107060.0,0.04673045]
[1748462929304,2.03307231,107070.0,107060.0,0.04661045]
[1748462929695,2.03307231,107070.0,107060.0,0.04673045]
[1748462929895,2.03307231,107070.0,107060.0,0.04873045]
[1748462930303,1.39162435,107070.0,107060.0,0.04873045]
[1748462930509,1.83782435,107070.0,107060.0,0.00506017]
[1748462930701,1.83782435,107070.0,107060.0,0.00706017]
[1748462930902,1.6564784,107070.0,107060.0,0.00706017]
[1748462931103,2.15633432,107070.0,107060.0,0.00706017]
[1748462933903,1.96112636,107070.0,107060.0,0.00706017]
[1748462936805,2.15633432,107070.0,107060.0,0.00706017]
[1748462937201,1.7659184,107070.0,107060.0,0.00706017]
[1748462937401,2.15633432,107070.0,107060.0,0.00706017]
[1748462939310,2.15633432,107070.0,107060.0,0.00694017]
[1748462939509,1.80357433,107070.0,107060.0,0.00706017]
[1748462939706,2.24965433,107070.0,107060.0,0.00706017]
[1748462939897,2.24965433,107070.0,107060.0,0.00694017]
[1748462940104,2.24965433,107070.0,107060.0,0.00706017]
[1748462941205,2.24965433,107070.0,107060.0,0.00506017]
[1748462941608,2.15625432,107070.0,107060.0,0.00506017]
[1748462942013,1.71017432,107070.0,107060.0,0.00506017]
[1748462942204,1.71017432,107070.0,107060.0,0.00306017]
[1748462942401,2.15621432,107070.0,107060.0,0.00306017]
[1748462943514,1.71017432,107070.0,107060.0,0.00306017]
[1748462943703,1.60069432,107070.0,107060.0,0.00306017]
[1748462943904,1.2102784,107070.0,107060.0,0.00306017]
[1748462944114,1.96068636,107070.0,107060.0,0.05646017]
[1748462944412,1.96064636,107070.0,107060.0,0.11016017]
[1748462944609,1.40548636,107070.0,107060.0,0.11016017]
[1748462944807,1.96064636,107070.0,107060.0,0.11016017]
[1748462946011,1.96064636,107070.0,107060.0,0.15375765]
[1748462946219,1.96064636,107070.0,107060.0,0.11016017]
[1748462946512,1.96064636,107070.0,107060.0,0.15377392]
[1748462951416,1.96064636,107070.0,107060.0,0.15384115]
[1748462953016,2.15585432,107070.0,107060.0,0.10014115]
[1748462953515,1.7654384,107070.0,107060.0,0.10014115]
[1748462953715,1.96064636,107070.0,107060.0,0.15444115]
[1748462954217,1.96064636,107070.0,107060.0,0.24155827]
[1748462954625,1.96064636,107070.0,107060.0,0.15444115]
[1748462954807,1.96064636,107070.0,107060.0,0.19787729]
[1748462955014,1.96064636,107070.0,107060.0,0.15449255]
[1748462955322,1.96064636,107070.0,107060.0,0.24160967]
[1748462955826,1.96044636,107070.0,107060.0,0.24160967]
[1748462956327,1.96044636,107070.0,107060.0,0.20190472]
[1748462956625,1.96044636,107070.0,107060.0,0.24566398]
[1748462957409,1.96044636,107070.0,107060.0,0.10514686]
[1748462957410,2.15565432,107070.0,107060.0,0.10514686]
[1748462957822,2.15565432,107070.0,107060.0,0.10502686]
[1748462958024,2.15565432,107070.0,107060.0,0.10514686]
[1748462958226,2.19896466,107070.0,107060.0,0.10514686]
[1748462958420,2.19896466,107070.0,107060.0,0.10234686]
[1748462959219,2.19897093,107070.0,107060.0,0.10235393]
[1748462959820,1.80855501,107070.0,107060.0,0.10235393]
[1748462960021,2.19897093,107070.0,107060.0,0.10235393]
[1748462960526,1.75317093,107070.0,107060.0,0.10515393]
[1748462960726,2.19889093,107070.0,107060.0,0.10515393]
[1748462963627,2.19887768,107070.0,107060.0,0.10515336]
[1748462965223,1.75315768,107070.0,107060.0,6e-08]
[1748462965423,2.34273236,107070.0,107060.0,6e-08]
[1748462965729,0.2367573,107060.0,107050.0,0.01401]
[1748462965916,1.51123115,107060.0,107050.0,0.01401]
[1748462966115,1.51123115,107060.0,107050.0,0.01413]
[1748462966926,1.51123115,107060.0,107050.0,0.01613]
[1748462967434,1.46793285,107060.0,107050.0,0.01613]
[1748462968016,0.2367747,107050.0,107040.0,0.14085729]
[1748462968227,1.98353025,107050.0,107040.0,0.05374017]
[1748462968426,1.98353025,107050.0,107040.0,0.05386017]
[1748462969224,1.98353025,107050.0,107040.0,0.05686017]
[1748462969527,1.98353025,107050.0,107040.0,0.00606017]
[1748462969933,1.98353025,107050.0,107040.0,0.00394017]
[1748462970229,1.98353025,107050.0,107040.0,0.00606017]
[1748462973635,1.98353025,107050.0,107040.0,0.02023963]
[1748462973835,1.98353025,107050.0,107040.0,0.00606017]
[1748462974034,1.98353025,107050.0,107040.0,0.02023844]
[1748462974832,1.98353025,107050.0,107040.0,0.02023873]
[1748462975135,1.98353025,107050.0,107040.0,0.00606017]
[1748462975334,1.98353025,107050.0,107040.0,0.02023862]
[1748462975734,1.98353025,107050.0,107040.0,0.00606017]
[1748462976428,1.42905025,107050.0,107040.0,0.02023959]
[1748462976629,1.02986266,107050.0,107040.0,0.42186017]
[1748462976835,1.2254747,107050.0,107040.0,0.54513927]
[1748462977136,1.2254747,107050.0,107040.0,0.63225639]
[1748462977341,1.2254747,107050.0,107040.0,0.63225737]
[1748462977839,1.2254747,107050.0,107040.0,0.61807729]
[1748462978039,1.42068266,107050.0,107040.0,0.61807729]
[1748462978233,1.2254747,107050.0,107040.0,0.61807729]
[1748462979032,1.2254747,107050.0,107040.0,0.63225735]
[1748462979232,1.2254747,107050.0,107040.0,0.61807729]
[1748462979637,1.2254747,107050.0,107040.0,0.63225735]
[1748462979936,1.2254747,107050.0,107040.0,0.61807729]
[1748462980124,1.2254747,107050.0,107040.0,0.81905339]
[1748462980532,1.2253947,107050.0,107040.0,0.80487079]
[1748462981139,0.6710747,107050.0,107040.0,0.81905324]
[1748462981328,0.7256547,107050.0,107040.0,0.92296163]
[1748462981534,1.1710947,107050.0,107040.0,1.03937565]
[1748462981729,1.1710947,107050.0,107040.0,1.05356192]
[1748462981940,1.1710947,107050.0,107040.0,1.05356202]
[1748462982133,1.1710947,107050.0,107040.0,1.03937565]
[1748462982333,1.1710947,107050.0,107040.0,1.05356202]
[1748462982531,1.1710947,107050.0,107040.0,1.05356199]
[1748462982747,1.1710947,107050.0,107040.0,0.84416769]
[1748462982925,1.1710947,107050.0,107040.0,0.85835404]
[1748462983132,1.1710947,107050.0,107040.0,0.84416769]
[1748462984136,1.1710947,107050.0,107040.0,0.84136769]
[1748462984539,1.1710947,107050.0,107040.0,0.85555403]
[1748462984736,1.1710947,107050.0,107040.0,0.84136769]
[1748462985040,1.1710947,107050.0,107040.0,0.65457419]
[1748462985244,1.2222947,107050.0,107040.0,0.65457419]
[1748462985646,1.2222947,107050.0,107040.0,0.66876056]
[1748462985841,1.2222947,107050.0,107040.0,0.85555406]
[1748462986345,1.2751947,107050.0,107040.0,0.855556]
[1748462986538,1.47040266,107050.0,107040.0,0.6687625]
[1748462986743,1.47040266,107050.0,107040.0,0.61553252]
[1748462986940,0.91608266,107050.0,107040.0,0.62972115]
[1748462987144,1.47028266,107050.0,107040.0,0.62972134]
[1748462987340,1.47028266,107050.0,107040.0,0.26892134]
[1748462987646,1.47028266,107050.0,107040.0,0.62972134]
[1748462987840,1.47028266,107050.0,107040.0,0.62972091]
[1748462988034,1.47028266,107050.0,107040.0,0.61553252]
[1748462988538,1.47028266,107050.0,107040.0,0.62972079]
[1748462988737,1.52118266,107050.0,107040.0,0.62972079]
[1748462989045,1.52118266,107050.0,107040.0,0.62960078]
[1748462989246,1.52118266,107050.0,107040.0,0.26892078]
[1748462989436,1.52118266,107050.0,107040.0,0.26880078]
[1748462989744,1.52118266,107050.0,107040.0,0.26892159]
[1748462990248,1.52118266,107050.0,107040.0,0.61553252]
[1748462990847,1.52118266,107050.0,107040.0,0.62972139]
[1748462991643,1.52118266,107050.0,107040.0,0.62972198]
[1748462991947,1.52118266,107050.0,107040.0,0.61553252]
[1748462992142,1.52118266,107050.0,107040.0,0.62972198]
[1748462993337,1.52118266,107050.0,107040.0,0.26892198]
[1748462993538,1.52118266,107050.0,107040.0,0.21412259]
[1748462993844,1.52118266,107050.0,107040.0,0.21412262]
[1748462994038,1.52118266,107050.0,107040.0,0.19993252]
[1748462994240,2.02925025,107050.0,107040.0,0.10482274]
[1748462994439,1.66845025,107050.0,107040.0,0.01733039]
[1748462994639,1.66845025,107050.0,107040.0,0.06965039]
[1748462995345,2.02925025,107050.0,107040.0,0.1137293]
[1748462995647,2.02925025,107050.0,107040.0,0.12792059]
[1748462995847,2.02925025,107050.0,107040.0,0.12780059]
[1748462996150,2.02925025,107050.0,107040.0,0.12792172]
[1748462996343,2.02925025,107050.0,107040.0,0.1279217]
[1748462996948,2.02925025,107050.0,107040.0,0.0757217]
[1748462997149,2.02925025,107050.0,107040.0,0.07572163]
[1748462997441,2.02925025,107050.0,107040.0,0.00314017]
[1748462997649,2.02925025,107050.0,107040.0,0.01745174]
[1748462997848,2.02925025,107050.0,107040.0,0.00314017]
[1748462998045,2.02925025,107050.0,107040.0,0.01745216]
[1748462998347,2.02925025,107050.0,107040.0,0.01431199]
[1748462998348,2.22445821,107050.0,107040.0,0.01431199]
[1748462998647,2.2676915,107050.0,107040.0,6e-08]
[1748462998846,2.2676915,107050.0,107040.0,0.00012006]
[1748462999037,2.32521354,107050.0,107040.0,0.00012006]
[1748462999442,0.1867945,107040.0,107030.0,0.00294017]
[1748462999642,1.57067801,107040.0,107030.0,0.00294017]
[1748463000550,3.07563801,107040.0,107030.0,7e-08]
[1748463000738,3.07563801,107040.0,107030.0,0.00100007]
[1748463000942,3.07563801,107040.0,107010.0,0.15448155]
[1748463000943,0.1868295,107020.0,107010.0,0.15448155]
[1748463001141,1.31571746,107020.0,107010.0,0.05826913]
[1748463001447,1.42111746,107020.0,107010.0,0.10816913]
[1748463001841,1.78191746,107020.0,107010.0,0.10816913]
[1748463002638,1.78191746,107020.0,107010.0,0.11116913]
[1748463002842,1.78191746,107020.0,107010.0,0.11316913]
[1748463004353,1.78191746,107020.0,107010.0,0.0549]
[1748463004556,1.2259095,107020.0,107010.0,0.0549]
[1748463004851,1.42111746,107020.0,107010.0,0.0549]
[1748463005051,1.42111746,107020.0,107010.0,0.11316913]
[1748463005255,1.42111746,107020.0,107010.0,0.0549]
[1748463007255,1.42111746,107020.0,107010.0,0.005]
[1748463007759,1.42111746,107020.0,107010.0,0.0583]
[1748463008444,1.56838505,107020.0,107010.0,0.0583]
[1748463008648,1.56838505,107020.0,107010.0,0.005]
[1748463008943,0.4854,107020.0,107010.0,0.75785456]
[1748463009148,0.3813,107020.0,107010.0,1.09577091]
[1748463009361,1.0130884,107020.0,107010.0,1.09577091]
[1748463009964,0.12,107020.0,107010.0,0.99839856]
[1748463010260,0.7517846,107020.0,107010.0,1.40481258]
[1748463011553,0.3068246,107020.0,107010.0,1.40481258]
[1748463011760,0.12,107020.0,107010.0,1.98862054]
[1748463011954,0.00014017,107030.0,107020.0,0.1868252]
[1748463012146,0.00014017,107030.0,107020.0,1.38794194]
[1748463012147,0.35694797,107030.0,107020.0,1.38794194]
[1748463012962,0.35694797,107030.0,107020.0,1.37794194]
[1748463013262,0.51694797,107030.0,107020.0,1.18994194]
[1748463013559,0.57044797,107030.0,107020.0,1.11102034]
[1748463013759,0.57044797,107030.0,107020.0,1.11302034]
[1748463014550,0.57044797,107030.0,107020.0,0.96734755]
[1748463014752,0.62234797,107030.0,107020.0,0.96734755]
[1748463014961,0.62234797,107030.0,107020.0,0.96746755]
[1748463016562,0.62234797,107030.0,107020.0,0.87403156]
[1748463017154,0.67664797,107030.0,107020.0,0.87403156]
[1748463017363,0.87185593,107030.0,107020.0,0.87403156]
[1748463017553,0.92185593,107030.0,107020.0,0.84500206]
[1748463017967,0.92185593,107030.0,107020.0,0.84488206]
[1748463018158,0.92185593,107030.0,107020.0,0.84500206]
[1748463018463,0.92185593,107030.0,107020.0,0.84488206]
[1748463018663,0.92185593,107030.0,107020.0,0.84500206]
[1748463021156,0.72664797,107030.0,107020.0,0.84500206]
[1748463023357,0.43364017,107030.0,107020.0,1.04021002]
[1748463023560,0.48482017,107030.0,107020.0,1.23923952]
[1748463023864,0.04014017,107030.0,107020.0,1.36206194]
[1748463024055,0.3955739,107050.0,107040.0,0.1867914]
[1748463024258,0.3955739,107050.0,107040.0,1.20126323]
[1748463024259,1.17984099,107050.0,107040.0,1.20126323]
[1748463024456,1.17984099,107050.0,107040.0,1.42355118]
[1748463025262,1.18184099,107050.0,107040.0,1.42355118]
[1748463025764,0.6289739,107050.0,107040.0,1.42355118]
[1748463025964,1.0735739,107050.0,107040.0,1.30716323]
[1748463026362,0.6289739,107050.0,107040.0,1.30716323]
[1748463026564,1.0735739,107050.0,107040.0,1.30716323]
[1748463027071,1.0735739,107050.0,107040.0,1.22834322]
[1748463027273,1.0735739,107050.0,107040.0,1.42355118]
[1748463027661,0.6289739,107050.0,107040.0,1.42355118]
[1748463027861,1.0735339,107050.0,107040.0,1.42355118]
[1748463028063,1.0735339,107050.0,107040.0,1.33626022]
[1748463028064,0.83656,107050.0,107040.0,1.33626022]
[1748463028269,0.78656,107050.0,107040.0,1.32626022]
[1748463028568,0.78656,107050.0,107040.0,1.67347236]
[1748463028775,0.973334,107050.0,107040.0,1.67347236]
[1748463029269,1.027334,107050.0,107040.0,1.55708441]
[1748463030172,1.078834,107050.0,107040.0,1.55708441]
[1748463032177,1.078834,107050.0,107040.0,1.36187645]
[1748463032363,1.27404196,107050.0,107040.0,1.10187645]
[1748463032565,1.27404196,107050.0,107040.0,1.11187645]
[1748463032958,1.27404196,107050.0,107040.0,1.11199645]
[1748463033472,1.47130955,107050.0,107040.0,0.64972337]
[1748463033768,1.47130955,107050.0,107040.0,0.64984337]
[1748463033963,1.47130955,107050.0,107040.0,0.64972337]
[1748463034159,1.47130955,107050.0,107040.0,0.64984337]
[1748463034874,1.47130955,107050.0,107040.0,0.65264337]
[1748463035259,1.47130955,107050.0,107040.0,0.73985551]
[1748463035871,1.47130955,107050.0,107040.0,0.69624386]
[1748463036070,1.27590159,107050.0,107040.0,0.69624386]
[1748463036272,0.4975,107050.0,107040.0,0.99815182]
[1748463036471,1.078594,107050.0,107040.0,0.95000451]
[1748463036679,1.078594,107050.0,107040.0,0.97918032]
[1748463041281,1.078594,107050.0,107040.0,0.78397236]
[1748463041466,0.39687386,107060.0,107040.0,0.78397236]
[1748463041672,0.631014,107050.0,107040.0,0.86925826]
[1748463041874,0.941014,107050.0,107040.0,1.23005826]
[1748463043475,0.942014,107050.0,107040.0,1.23005826]
[1748463044875,1.096914,107050.0,107040.0,1.23005826]
[1748463047884,1.096914,107050.0,107040.0,1.22725826]
[1748463050187,1.096914,107050.0,107040.0,1.23005826]
[1748463052882,1.096914,107050.0,107040.0,1.89047418]
[1748463052883,0.362,107050.0,107040.0,1.89047418]
[1748463053078,0.091,107050.0,107040.0,2.1803397]
[1748463053380,0.001,107050.0,107040.0,2.10911827]
[1748463053691,0.11706201,107070.0,107060.0,0.1867569]
[1748463053692,0.01386201,107070.0,107060.0,0.1867569]
[1748463053879,0.18,107070.0,107060.0,2.31733795]
[1748463054080,0.18,107070.0,107060.0,2.41073795]
[1748463054281,0.18,107070.0,107060.0,2.61594591]
[1748463055288,0.18,107070.0,107060.0,2.3403569]
[1748463055481,0.18,107070.0,107060.0,2.3413569]
[1748463056376,0.18,107070.0,107060.0,2.3513569]
[1748463057282,0.18,107070.0,107060.0,2.40552981]
[1748463059191,0.18,107070.0,107060.0,2.55081432]
[1748463059500,0.18,107070.0,107060.0,2.54081432]
[1748463059799,0.18,107070.0,107060.0,2.55506657]
[1748463060195,0.18,107070.0,107060.0,2.55506121]
[1748463060501,0.1938471,107070.0,107060.0,2.33920228]
[1748463060697,0.1938471,107070.0,107060.0,2.35344917]
[1748463061000,0.1938471,107070.0,107060.0,2.35344796]
[1748463061293,0.1938471,107070.0,107060.0,2.33920228]
[1748463061491,0.1938471,107070.0,107060.0,2.40481796]
[1748463061692,0.1938471,107070.0,107060.0,2.41057228]
[1748463061893,0.0138471,107070.0,107060.0,2.41057228]
[1748463062092,0.05264017,107080.0,107070.0,0.1867395]
[1748463062299,0.24264017,107080.0,107070.0,1.23470089]
[1748463063190,0.24264017,107080.0,107070.0,1.24894527]
[1748463063593,0.24264017,107080.0,107070.0,1.24894429]
[1748463064002,0.24264017,107080.0,107070.0,1.25753908]
[1748463064191,0.24264017,107080.0,107070.0,1.06233112]
[1748463064598,0.24364017,107080.0,107070.0,1.25753908]
[1748463064899,0.24364017,107080.0,107070.0,1.06233112]
[1748463065096,0.29644017,107080.0,107070.0,1.06233112]
[1748463065286,0.29644017,107080.0,107070.0,1.06233133]
[1748463065493,0.29644017,107080.0,107070.0,1.06233172]
[1748463066002,0.29644017,107080.0,107070.0,1.06232823]
[1748463066388,0.29644017,107080.0,107070.0,1.25753619]
[1748463066594,0.29644017,107080.0,107070.0,1.24610089]
[1748463066897,0.29644017,107080.0,107070.0,1.26033556]
[1748463067202,0.29644017,107080.0,107070.0,1.24610089]
[1748463067499,0.29644017,107080.0,107070.0,1.26033298]
[1748463067887,0.29644017,107080.0,107070.0,1.26033189]
[1748463068298,0.29644017,107080.0,107070.0,1.26032995]
[1748463068503,0.29644017,107080.0,107070.0,1.24610089]
[1748463068702,0.29644017,107080.0,107070.0,1.26032941]
[1748463068898,0.29644017,107080.0,107070.0,1.24610089]
[1748463069298,0.29644017,107080.0,107070.0,1.26032926]
[1748463069499,0.29644017,107080.0,107070.0,1.0651213]
[1748463069795,0.29644017,107080.0,107070.0,1.26032917]
[1748463070301,0.29644017,107080.0,107070.0,1.26032743]
[1748463070504,0.29644017,107080.0,107070.0,1.26032695]
[1748463071211,0.29644017,107080.0,107070.0,1.81180695]
[1748463071395,0.29644017,107080.0,107070.0,1.79758089]
[1748463071597,0.29644017,107080.0,107070.0,1.81180657]
[1748463071803,0.29644017,107080.0,107070.0,1.79758089]
[1748463072104,0.29644017,107080.0,107070.0,1.81180657]
[1748463072300,0.29644017,107080.0,107070.0,1.79758089]
[1748463072893,0.24364017,107080.0,107070.0,1.79758089]
[1748463074105,0.24364017,107080.0,107070.0,1.81180763]
[1748463074806,0.24364017,107080.0,107070.0,1.82603568]
[1748463075703,0.24364017,107080.0,107070.0,1.8260362]
[1748463075911,0.24364017,107080.0,107070.0,1.97132071]
[1748463076202,0.24364017,107080.0,107070.0,1.85516728]
[1748463076506,0.29904017,107080.0,107070.0,1.41160728]
[1748463076698,0.29904017,107080.0,107070.0,1.97125202]
[1748463077011,0.29904017,107080.0,107070.0,1.85504729]
[1748463077495,0.29904017,107080.0,107070.0,1.85505354]
[1748463077892,0.29904017,107080.0,107070.0,1.85505476]
[1748463078808,0.29904017,107080.0,107070.0,1.85505589]
[1748463080210,0.29904017,107080.0,107070.0,1.85506189]
[1748463080908,0.29904017,107080.0,107070.0,1.85506918]
[1748463081109,0.29904017,107080.0,107070.0,1.84081871]
[1748463081300,0.29904017,107080.0,107070.0,1.85507037]
[1748463082106,0.29904017,107080.0,107070.0,1.85508216]
[1748463082308,0.29904017,107080.0,107070.0,1.70979765]
[1748463082502,0.29904017,107080.0,107070.0,1.91140969]
[1748463083109,0.29904017,107080.0,107070.0,1.91142962]
[1748463083796,0.29904017,107080.0,107070.0,1.91144782]
[1748463084408,0.29904017,107080.0,107070.0,1.91144846]
[1748463084606,0.29904017,107080.0,107070.0,1.9114485]
[1748463084909,0.29904017,107080.0,107070.0,1.89714624]
[1748463085298,0.29904017,107080.0,107070.0,1.91144846]
[1748463086604,0.29904017,107080.0,107070.0,1.92575238]
[1748463086805,0.29904017,107080.0,107070.0,1.7162405]
[1748463087004,0.29904017,107080.0,107070.0,1.91144846]
[1748463087203,0.29904017,107080.0,107070.0,1.92575225]
[1748463087415,0.29904017,107080.0,107070.0,1.91144846]
[1748463087802,0.29904017,107080.0,107070.0,1.92575227]
[1748463088409,0.29904017,107080.0,107070.0,1.92575244]
[1748463088700,0.29904017,107080.0,107070.0,1.99693349]
[1748463089410,0.29904017,107080.0,107070.0,1.98262951]
[1748463089616,0.29904017,107080.0,107070.0,1.99693356]
[1748463090015,0.29904017,107080.0,107070.0,1.99693568]
[1748463090514,0.29904017,107080.0,107070.0,1.99730859]
[1748463090716,0.29904017,107080.0,107070.0,1.9973086]
[1748463091013,0.29904017,107080.0,107070.0,1.9972686]
[1748463091216,0.29904017,107080.0,107070.0,1.99726888]
[1748463091412,0.29904017,107080.0,107070.0,1.98296242]
[1748463091606,0.29904017,107080.0,107070.0,1.99726882]
[1748463092917,0.29904017,107080.0,107070.0,1.99726853]
[1748463093308,0.29904017,107080.0,107070.0,1.98296242]
[1748463093514,0.29904017,107080.0,107070.0,1.9972686]
[1748463093709,0.29904017,107080.0,107070.0,2.04098838]
[1748463093908,0.29904017,107080.0,107070.0,1.83937634]
[1748463094509,0.29904017,107080.0,107070.0,1.8250702]
[1748463094710,0.29904017,107080.0,107070.0,1.9856472]
[1748463095421,0.29904017,107080.0,107070.0,1.99995307]
[1748463095625,0.29904017,107080.0,107070.0,1.9856472]
[1748463096307,0.29904017,107080.0,107070.0,1.99995311]
[1748463096516,0.29904017,107080.0,107070.0,1.9856472]
[1748463096713,0.29904017,107080.0,107070.0,1.91426615]
[1748463096913,0.29904017,107080.0,107070.0,1.55675317]
[1748463097116,0.29904017,107080.0,107070.0,1.91414615]
[1748463097317,0.29904017,107080.0,107070.0,1.92845231]
[1748463097623,0.29904017,107080.0,107070.0,1.91414615]
[1748463098014,0.29904017,107080.0,107070.0,1.9855272]
[1748463098320,0.29904017,107080.0,107070.0,1.92845225]
[1748463098520,0.29904017,107080.0,107070.0,1.9427583]
[1748463098715,0.29904017,107080.0,107070.0,1.92845224]
[1748463099218,0.29904017,107080.0,107070.0,1.94275822]
[1748463099724,0.24364017,107080.0,107070.0,2.02844522]
[1748463099922,0.24364017,107080.0,107070.0,2.01413927]
[1748463101011,0.24364017,107080.0,107070.0,2.01405927]
[1748463101416,0.29974017,107080.0,107070.0,2.01405927]
[1748463102124,0.29974017,107080.0,107070.0,2.02849509]
[1748463102320,0.29974017,107080.0,107070.0,2.01405927]
[1748463102823,0.29974017,107080.0,107070.0,2.0284961]
[1748463103023,0.29974017,107080.0,107070.0,2.01405927]
[1748463103418,0.29974017,107080.0,107070.0,2.10301903]
[1748463103622,0.29974017,107080.0,107070.0,1.88430996]
[1748463103817,0.29974017,107080.0,107070.0,1.44130996]
[1748463104018,0.29974017,107080.0,107070.0,1.88426996]
[1748463104224,0.29974017,107080.0,107070.0,1.89868222]
[1748463104819,0.29974017,107080.0,107070.0,1.88426996]
[1748463105013,0.29974017,107080.0,107070.0,1.8986867]
[1748463105729,0.29974017,107080.0,107070.0,1.89868666]
[1748463106622,0.29974017,107080.0,107070.0,1.88426996]
[1748463107019,0.29974017,107080.0,107070.0,1.89868676]
[1748463107220,0.29974017,107080.0,107070.0,1.89868665]
[1748463107622,0.29974017,107080.0,107070.0,1.89868651]
[1748463107928,0.29974017,107080.0,107070.0,1.824139]
[1748463108113,0.29974017,107080.0,107070.0,2.02843587]
[1748463108315,0.001,107080.0,107070.0,2.20226271]
[1748463108516,0.0014024,107090.0,107080.0,0.1867221]
[1748463108722,0.0014024,107090.0,107080.0,1.35062688]
[1748463108924,0.0014024,107090.0,107080.0,1.39062688]
[1748463109529,0.0535024,107090.0,107080.0,1.40503494]
[1748463109828,0.0535024,107090.0,107080.0,1.40503466]
[1748463109829,0.0555024,107090.0,107080.0,1.40503466]
[1748463110023,0.0575024,107090.0,107080.0,1.47641571]
[1748463110230,0.0575024,107090.0,107080.0,1.47641543]
[1748463110423,0.0575024,107090.0,107080.0,1.47652041]
[1748463110728,0.0575024,107090.0,107080.0,1.47932041]
[1748463111326,0.0575024,107090.0,107080.0,1.47932074]
[1748463112026,0.0575024,107090.0,107080.0,1.47932024]
[1748463112228,0.0575024,107090.0,107080.0,1.40793919]
[1748463112621,0.0575024,107090.0,107080.0,1.40159688]
[1748463113230,0.0575024,107090.0,107080.0,1.19730006]
[1748463113618,0.0054024,107090.0,107080.0,1.19730006]
[1748463113931,0.0054024,107090.0,107080.0,1.31209125]
[1748463114132,0.05284017,107100.0,107090.0,0.1867047]
[1748463114133,7e-08,107100.0,107090.0,0.1867047]
[1748463114333,0.30901791,107120.0,107110.0,0.1866698]
[1748463114532,0.62901791,107120.0,107110.0,1.67624878]
[1748463114738,0.62901791,107120.0,107110.0,1.46653838]
[1748463115024,0.62901791,107120.0,107110.0,1.66199609]
[1748463115229,0.62901791,107120.0,107110.0,1.65899609]
[1748463115832,0.62901791,107120.0,107110.0,1.67351303]
[1748463116218,0.62901791,107120.0,107110.0,1.67151303]
[1748463116827,0.62901791,107120.0,107110.0,1.6724957]
[1748463117227,0.62901791,107120.0,107110.0,1.78886738]
[1748463117426,0.62901791,107120.0,107110.0,1.7888663]
[1748463118025,0.62901791,107120.0,107110.0,1.7888575]
[1748463118228,0.62901791,107120.0,107110.0,1.75078892]
[1748463118733,0.62901791,107120.0,107110.0,1.75078774]
[1748463118932,0.62901791,107120.0,107110.0,1.73629923]
[1748463119133,0.62901791,107120.0,107110.0,1.75078789]
[1748463119433,0.64336995,107120.0,107110.0,1.75078307]
[1748463119634,0.64336995,107120.0,107110.0,1.54109127]
[1748463119832,1.46783021,107120.0,107110.0,1.03549435]
[1748463120041,1.46783021,107120.0,107110.0,1.03549446]
[1748463120226,1.46783021,107120.0,107110.0,1.02101127]
[1748463120426,1.51783021,107120.0,107110.0,1.03537453]